[Event "Sverigemastarklassen 2025"]
[Site "Uppsala, Sweden"]
[Date "2025.07.05"]
[Round "8.4"]
[White "Sorensen, Hampus"]
[Black "Lokander, Martin"]
[Result "1/2-1/2"]
[TimeControl "90 min for 40 move + 30 min with an increment of 30 sec starting move 1"]
[WhiteTitle "IM"]
[BlackTitle "IM"]
[WhiteFideId "8703884"]
[BlackFideId "1709569"]
[WhiteElo "2432"]
[BlackElo "2446"]

1. d4 {[%clk 01:30:44]} {[%emt 00:00:15]} d5 {[%clk 01:30:54]} {[%emt
00:00:07]} 2. c4 {[%clk 01:31:04]} {[%emt 00:00:10]} c6 {[%clk 01:31:19]}
{[%emt 00:00:05]} 3. Nf3 {[%clk 01:29:04]} {[%emt 00:02:29]} Nf6 {[%clk
01:31:44]} {[%emt 00:00:06]} 4. Qc2 {[%clk 01:22:28]} {[%emt 00:07:06]} e6
{[%clk 01:25:56]} {[%emt 00:06:18]} 5. g3 {[%clk 01:15:05]} {[%emt 00:07:52]}
Nbd7 {[%clk 01:25:33]} {[%emt 00:00:54]} 6. Bg2 {[%clk 01:11:01]} {[%emt
00:04:34]} Bd6 {[%clk 01:25:52]} {[%emt 00:00:11]} 7. O-O {[%clk 01:10:32]}
{[%emt 00:00:59]} O-O {[%clk 01:25:49]} {[%emt 00:00:34]} 8. Nbd2 {[%clk
01:02:55]} {[%emt 00:08:06]} Re8 {[%clk 01:25:41]} {[%emt 00:00:38]} 9. b3
{[%clk 01:01:43]} {[%emt 00:01:41]} e5 {[%clk 01:25:01]} {[%emt 00:01:11]} 10.
cxd5 {[%clk 01:00:14]} {[%emt 00:01:59]} cxd5 {[%clk 01:22:40]} {[%emt
00:02:51]} 11. dxe5 {[%clk 00:59:28]} {[%emt 00:01:15]} Nxe5 {[%clk 01:23:06]}
{[%emt 00:00:04]} 12. Bb2 {[%clk 00:59:03]} {[%emt 00:00:56]} Nc6 {[%clk
01:23:19]} {[%emt 00:00:18]} 13. e3 {[%clk 00:57:10]} {[%emt 00:02:22]} Bg4
{[%clk 01:20:15]} {[%emt 00:03:33]} 14. a3 {[%clk 00:51:44]} {[%emt 00:05:56]}
Ne4 {[%clk 01:13:26]} {[%emt 00:07:19]} 15. b4 {[%clk 00:46:36]} {[%emt
00:05:38]} Qe7 {[%clk 01:01:58]} {[%emt 00:11:58]} 16. Rac1 {[%clk 00:41:38]}
{[%emt 00:05:27]} a6 {[%clk 00:57:27]} {[%emt 00:05:02]} 17. Qb1 {[%clk
00:36:57]} {[%emt 00:05:11]} Rad8 {[%clk 00:56:50]} {[%emt 00:01:07]} 18. Qa1
{[%clk 00:36:02]} {[%emt 00:01:25]} f6 {[%clk 00:56:11]} {[%emt 00:01:09]} 19.
Nb3 {[%clk 00:32:09]} {[%emt 00:04:22]} Qf7 {[%clk 00:50:11]} {[%emt 00:06:31]}
20. Nfd4 {[%clk 00:23:45]} {[%emt 00:08:54]} Nxd4 {[%clk 00:47:09]} {[%emt
00:03:32]} 21. Nxd4 {[%clk 00:23:49]} {[%emt 00:00:26]} Qh5 {[%clk 00:36:40]}
{[%emt 00:10:59]} 22. Rc2 {[%clk 00:18:51]} {[%emt 00:05:28]} Be5 {[%clk
00:29:31]} {[%emt 00:07:39]} 23. f3 Nxg3 {[%clk 00:29:30]} 24. fxg4 {[%clk
00:09:41]} {[%emt 00:00:19]} Ne2+ {[%clk 00:29:23]} {[%emt 00:00:37]} 25. Kf2
{[%clk 00:10:08]} {[%emt 00:00:03]} Qxh2 {[%clk 00:28:55]} {[%emt 00:00:58]} 26.
Kxe2 {[%clk 00:08:05]} {[%emt 00:02:33]} Qxg2+ {[%clk 00:27:57]} {[%emt
00:01:28]} 27. Rf2 {[%clk 00:05:38]} {[%emt 00:02:56]} Qxg4+ {[%clk 00:27:58]}
{[%emt 00:00:30]} 28. Kd2 {[%clk 00:05:57]} {[%emt 00:00:11]} Bg3 {[%clk
00:26:43]} {[%emt 00:01:45]} 29. Re2 {[%clk 00:05:10]} {[%emt 00:01:17]} Re4
{[%clk 00:25:51]} {[%emt 00:01:22]} 30. Qh1 {[%clk 00:04:24]} {[%emt 00:01:15]}
Rde8 {[%clk 00:25:04]} {[%emt 00:01:17]} 31. Kc1 {[%clk 00:04:20]} {[%emt
00:00:34]} h5 {[%clk 00:23:56]} {[%emt 00:01:39]} 32. Kb1 {[%clk 00:04:10]}
{[%emt 00:00:40]} h4 {[%clk 00:24:00]} {[%emt 00:00:26]} 33. Nb3 {[%clk
00:03:12]} {[%emt 00:01:27]} h3 {[%clk 00:20:19]} {[%emt 00:04:11]} 34. Nc5
{[%clk 00:02:17]} {[%emt 00:01:26]} Rxe3 {[%clk 00:20:34]} {[%emt 00:00:15]} 35.
Qxd5+ {[%clk 00:02:44]} {[%emt 00:00:03]} Kh7 {[%clk 00:20:53]} {[%emt
00:00:10]} 36. Red2 {[%clk 00:02:34]} {[%emt 00:00:40]} Kg6 {[%clk 00:17:25]}
{[%emt 00:03:58]} 37. Ka2 {[%clk 00:01:53]} {[%emt 00:01:11]} Rh8 {[%clk
00:09:45]} {[%emt 00:08:10]} 38. Qxb7 {[%clk 00:01:05]} {[%emt 00:01:19]} h2
{[%clk 00:09:30]} {[%emt 00:00:45]} 39. Rd7 {[%clk 00:01:24]} {[%emt 00:00:11]}
Rh7 {[%clk 00:05:22]} {[%emt 00:04:38]} 40. Bxf6 {[%clk 00:00:46]} {[%emt
00:01:08]} Qxd7 {[%clk 00:00:34]} {[%emt 00:05:17]} 41. Nxd7 {[%clk 00:08:37]}
{[%emt 00:22:39]} h1=Q {[%clk 00:30:44]} {[%emt 00:00:19]} 42. Nf8+ {[%clk
00:09:02]} {[%emt 00:00:05]} Kxf6 {[%clk 00:24:51]} {[%emt 00:06:25]} 43. Rc6+
{[%clk 00:09:18]} {[%emt 00:00:14]} Kf5 {[%clk 00:18:22]} {[%emt 00:06:58]} 44.
Qd7+ {[%clk 00:03:15]} {[%emt 00:06:33]} Kf4 {[%clk 00:15:59]} {[%emt
00:02:54]} 45. Rc4+ {[%clk 00:00:44]} {[%emt 00:03:01]} Re4 {[%clk 00:11:25]}
{[%emt 00:05:04]} 46. Qd6+ {[%clk 00:01:06]} {[%emt 00:00:08]} Kf3 {[%clk
00:07:07]} {[%emt 00:04:47]} 47. Rc3+ {[%clk 00:01:10]} {[%emt 00:00:26]} Re3
{[%clk 00:06:40]} {[%emt 00:00:57]} 48. Rxe3+ {[%clk 00:00:59]} {[%emt
00:00:41]} Kxe3 {[%clk 00:07:06]} {[%emt 00:00:04]} 49. Qxg3+ {[%clk 00:01:27]}
{[%emt 00:00:02]} Kd4 {[%clk 00:06:40]} {[%emt 00:00:56]} 50. Qf2+ {[%clk
00:01:16]} {[%emt 00:00:40]} Kd3 {[%clk 00:06:47]} {[%emt 00:00:24]} 51. Qf5+
{[%clk 00:01:08]} {[%emt 00:00:37]} Kc3 {[%clk 00:07:09]} {[%emt 00:00:09]} 52.
Qe5+ {[%clk 00:00:46]} {[%emt 00:00:52]} Kd3 {[%clk 00:07:12]} {[%emt
00:00:26]} 53. Qd6+ {[%clk 00:00:53]} {[%emt 00:00:22]} Kc3 {[%clk 00:07:10]}
{[%emt 00:00:33]} 54. Qc5+ {[%clk 00:00:54]} {[%emt 00:00:29]} Kd3 {[%clk
00:07:34]} {[%emt 00:00:06]} 55. Nxh7 {[%clk 00:00:46]} {[%emt 00:00:38]} Qxh7
{[%clk 00:07:35]} {[%emt 00:00:30]} 56. Qd5+ {[%clk 00:00:35]} {[%emt
00:00:41]} Ke3 {[%clk 00:07:38]} {[%emt 00:00:26]} 57. Qc5+ {[%clk 00:00:47]}
{[%emt 00:00:18]} Kd3 {[%clk 00:07:52]} {[%emt 00:00:16]} 58. Qd6+ {[%clk
00:00:54]} {[%emt 00:00:23]} Ke3 {[%clk 00:07:43]} {[%emt 00:00:40]} 59. Qb6+
{[%clk 00:00:59]} {[%emt 00:00:23]} Kd2 {[%clk 00:07:40]} {[%emt 00:00:34]} 60.
Qf2 {[%clk 00:01:21]} {[%emt 00:00:06]} Kd3 {[%clk 00:07:04]} {[%emt 00:01:08]}
61. Qf1+ {[%clk 00:01:18]} {[%emt 00:00:33]} Kd2 {[%clk 00:07:25]} {[%emt
00:00:10]} 62. Qf2 {[%clk 00:01:21]} {[%emt 00:00:26]} Kd1 {[%clk 00:07:43]}
{[%emt 00:00:12]} 63. Qd4+ {[%clk 00:00:57]} {[%emt 00:00:53]} Ke2 {[%clk
00:07:53]} {[%emt 00:00:21]} 64. Qe5 {[%clk 00:01:03]} {[%emt 00:00:23]} Kf3
{[%clk 00:07:32]} {[%emt 00:00:52]} 65. Qc3+ {[%clk 00:01:14]} {[%emt
00:00:18]} Ke2 {[%clk 00:07:31]} {[%emt 00:00:32]} 66. Qe5 {[%clk 00:00:57]}
{[%emt 00:00:47]} Kf3 {[%clk 00:07:54]} {[%emt 00:00:08]} 67. Qc3+ {[%clk
00:01:02]} {[%emt 00:00:24]} Ke2 {[%clk 00:08:20]} {[%emt 00:00:04]} 68. Qe5
{[%clk 00:01:08]} {[%emt 00:00:25]} Kf3 {[%clk 00:08:45]} {[%emt 00:00:04]} 69.
Qc3+ {[%clk 00:01:26]} {[%emt 00:00:12]} Ke2 {[%clk 00:09:11]} {[%emt
00:00:05]} 1/2-1/2

[Event "Sverigemastarklassen 2025"]
[Site "Uppsala, Sweden"]
[Date "2025.07.05"]
[Round "8.5"]
[White "Seo, Jung Min"]
[Black "Galperin, Platon"]
[Result "1/2-1/2"]
[TimeControl "90 min for 40 move + 30 min with an increment of 30 sec starting move 1"]
[WhiteTitle "IM"]
[BlackTitle "GM"]
[WhiteFideId "1734687"]
[BlackFideId "14165414"]
[WhiteElo "2472"]
[BlackElo "2500"]

1. e4 {[%clk 01:30:59]} e5 {[%clk 01:30:18]} {[%emt 00:00:42]} 2. Nf3 {[%clk
01:31:25]} {[%emt 00:00:04]} Nc6 {[%clk 01:30:44]} {[%emt 00:00:05]} 3. Nc3
{[%clk 01:31:09]} {[%emt 00:00:46]} Bb4 {[%clk 01:31:08]} {[%emt 00:00:06]} 4.
Nd5 {[%clk 01:30:14]} {[%emt 00:01:26]} Nf6 {[%clk 01:31:29]} {[%emt 00:00:08]}
5. Nxb4 {[%clk 01:07:55]} {[%emt 00:22:49]} Nxb4 {[%clk 01:31:24]} {[%emt
00:00:34]} 6. a3 {[%clk 01:07:33]} {[%emt 00:00:53]} Nc6 {[%clk 01:31:48]}
{[%emt 00:00:05]} 7. Bb5 {[%clk 01:07:20]} {[%emt 00:00:44]} Nxe4 {[%clk
01:28:44]} {[%emt 00:03:34]} 8. Qe2 {[%clk 01:03:12]} {[%emt 00:04:37]} Nf6
{[%clk 01:21:15]} {[%emt 00:07:59]} 9. Bxc6 {[%clk 01:02:23]} {[%emt 00:01:20]}
dxc6 {[%clk 01:21:42]} {[%emt 00:00:03]} 10. Qxe5+ {[%clk 01:02:49]} {[%emt
00:00:03]} Be6 {[%clk 01:22:09]} {[%emt 00:00:04]} 11. d3 {[%clk 01:02:06]}
{[%emt 00:01:13]} Qd7 {[%clk 01:12:08]} {[%emt 00:10:30]} 12. Bg5 {[%clk
01:00:41]} {[%emt 00:01:55]} Rg8 {[%clk 01:12:28]} {[%emt 00:00:11]} 13. Bxf6
{[%clk 00:57:26]} {[%emt 00:03:44]} gxf6 {[%clk 01:12:52]} {[%emt 00:00:06]} 14.
Qxf6 {[%clk 00:57:54]} {[%emt 00:00:03]} Qd6 {[%clk 01:05:22]} {[%emt
00:08:00]} 15. Rg1 {[%clk 00:53:26]} {[%emt 00:04:57]} Rd8 {[%clk 01:00:35]}
{[%emt 00:05:17]} 16. O-O-O {[%clk 00:51:49]} {[%emt 00:02:07]} Bd5 {[%clk
00:53:22]} {[%emt 00:07:42]} 17. Qxd6 {[%clk 00:43:35]} {[%emt 00:08:46]} Rxd6
{[%clk 00:53:46]} {[%emt 00:00:06]} 18. Nh4 {[%clk 00:43:28]} {[%emt 00:00:36]}
Rf6 {[%clk 00:54:14]} {[%emt 00:00:03]} 19. f3 {[%clk 00:42:34]} {[%emt
00:01:23]} Kd7 {[%clk 00:54:25]} {[%emt 00:00:19]} 20. g3 {[%clk 00:41:30]}
{[%emt 00:01:34]} c5 {[%clk 00:54:50]} {[%emt 00:00:05]} 21. f4 {[%clk
00:41:25]} {[%emt 00:00:35]} b5 {[%clk 00:54:57]} {[%emt 00:00:24]} 22. Rge1
{[%clk 00:41:33]} {[%emt 00:00:22]} Re6 {[%clk 00:52:50]} {[%emt 00:02:36]} 23.
Rxe6 {[%clk 00:41:15]} {[%emt 00:00:48]} Bxe6 {[%clk 00:52:56]} {[%emt
00:00:24]} 24. Re1 {[%clk 00:41:02]} {[%emt 00:00:43]} f6 {[%clk 00:53:17]}
{[%emt 00:00:09]} 25. Kd2 {[%clk 00:35:16]} {[%emt 00:06:16]} a5 {[%clk
00:53:02]} {[%emt 00:00:46]} 26. Nf3 {[%clk 00:33:25]} {[%emt 00:02:19]} a4
{[%clk 00:51:52]} {[%emt 00:01:40]} 27. Ke3 {[%clk 00:32:55]} {[%emt 00:01:02]}
h5 {[%clk 00:51:40]} {[%emt 00:00:41]} 28. Nd2 {[%clk 00:32:57]} {[%emt
00:00:28]} Rg6 {[%clk 00:51:20]} {[%emt 00:00:50]} 29. Kf2 {[%clk 00:31:42]}
{[%emt 00:01:45]} Bf5 {[%clk 00:51:33]} {[%emt 00:00:17]} 30. Ne4 {[%clk
00:31:20]} {[%emt 00:00:53]} Kc6 {[%clk 00:51:55]} {[%emt 00:00:08]} 31. Nc3
{[%clk 00:30:54]} {[%emt 00:00:55]} h4 {[%clk 00:50:27]} {[%emt 00:01:58]} 32.
Re8 {[%clk 00:29:53]} {[%emt 00:01:31]} hxg3+ {[%clk 00:50:49]} {[%emt
00:00:08]} 33. hxg3 {[%clk 00:30:22]} {[%emt 00:00:02]} Rh6 {[%clk 00:51:15]}
{[%emt 00:00:05]} 34. Kg1 {[%clk 00:30:06]} {[%emt 00:00:44]} Kd7 {[%clk
00:49:58]} {[%emt 00:01:48]} 35. Rg8 {[%clk 00:29:27]} {[%emt 00:01:08]} c6
{[%clk 00:50:14]} {[%emt 00:00:14]} 36. g4 {[%clk 00:28:49]} {[%emt 00:01:08]}
Be6 {[%clk 00:48:44]} {[%emt 00:01:54]} 37. Rg7+ {[%clk 00:29:00]} {[%emt
00:00:25]} Ke8 {[%clk 00:49:13]} {[%emt 00:00:02]} 38. Ne4 {[%clk 00:13:34]}
{[%emt 00:15:55]} c4 {[%clk 00:48:54]} {[%emt 00:00:49]} 39. Kg2 {[%clk
00:10:23]} {[%emt 00:03:42]} cxd3 {[%clk 00:45:10]} {[%emt 00:04:14]} 40. cxd3
{[%clk 00:10:50]} {[%emt 00:00:03]} Kf8 {[%clk 00:43:22]} {[%emt 00:02:18]} 41.
Rc7 {[%clk 00:11:04]} {[%emt 00:00:16]} Bxg4 {[%clk 00:43:46]} {[%emt
00:00:06]} 42. Rxc6 {[%clk 00:11:08]} {[%emt 00:00:27]} Ke7 {[%clk 00:44:13]}
{[%emt 00:00:02]} 43. Rb6 {[%clk 00:10:11]} {[%emt 00:01:28]} Bd7 {[%clk
00:44:30]} {[%emt 00:00:12]} 44. Nc3 {[%clk 00:10:20]} {[%emt 00:00:21]} Rh5
{[%clk 00:44:19]} {[%emt 00:00:40]} 45. d4 {[%clk 00:10:27]} {[%emt 00:00:24]}
Rf5 {[%clk 00:44:39]} {[%emt 00:00:11]} 46. Kf3 {[%clk 00:03:01]} {[%emt
00:07:55]} Rh5 {[%clk 00:44:52]} {[%emt 00:00:16]} 47. d5 {[%clk 00:01:41]}
{[%emt 00:01:51]} Rh2 {[%clk 00:43:13]} {[%emt 00:02:09]} 48. Ne4 {[%clk
00:28:20]} {[%emt 00:03:51]} Rxb2 {[%clk 01:00:09]} {[%emt 00:13:34]} 49. d6+
{[%clk 00:28:11]} {[%emt 00:00:39]} Kf7 {[%clk 00:59:54]} {[%emt 00:00:45]} 50.
Rb7 {[%clk 00:16:24]} {[%emt 00:12:18]} Ke6 {[%clk 01:00:17]} {[%emt 00:00:06]}
51. Nc5+ {[%clk 00:16:49]} {[%emt 00:00:05]} Kxd6 {[%clk 01:00:43]} {[%emt
00:00:04]} 52. Nxd7 {[%clk 00:17:18]} {[%emt 00:00:02]} Kc6 {[%clk 01:00:50]}
{[%emt 00:00:22]} 53. Ra7 {[%clk 00:17:45]} {[%emt 00:00:03]} Rb3+ {[%clk
01:01:14]} {[%emt 00:00:06]} 54. Ke4 {[%clk 00:17:15]} {[%emt 00:01:01]} Rxa3
{[%clk 01:01:33]} {[%emt 00:00:11]} 55. Nxf6 {[%clk 00:17:43]} {[%emt
00:00:01]} Ra1 {[%clk 00:58:21]} {[%emt 00:03:42]} 56. Kd3 {[%clk 00:06:06]}
{[%emt 00:12:06]} a3 {[%clk 00:50:21]} {[%emt 00:08:31]} 57. Kc3 {[%clk
00:05:32]} {[%emt 00:01:03]} Rf1 {[%clk 00:50:01]} {[%emt 00:00:51]} 58. Rxa3
{[%clk 00:02:09]} {[%emt 00:03:53]} b4+ {[%clk 00:50:23]} {[%emt 00:00:09]} 59.
Kxb4 {[%clk 00:02:31]} {[%emt 00:00:07]} Rxf4+ {[%clk 00:50:50]} {[%emt
00:00:03]} 60. Kb3 {[%clk 00:02:58]} {[%emt 00:00:03]} Rf3+ {[%clk 00:51:16]}
{[%emt 00:00:04]} 61. Kb2 {[%clk 00:03:27]} {[%emt 00:00:01]} Rxa3 {[%clk
00:51:41]} {[%emt 00:00:05]} 62. Kxa3 {[%clk 00:03:55]} {[%emt 00:00:01]}
1/2-1/2

[Event "Sverigemastarklassen 2025"]
[Site "Uppsala, Sweden"]
[Date "2025.07.04"]
[Round "7.1"]
[White "Pantzar, Milton"]
[Black "Hillarp-Persson, Tiger"]
[Result "1-0"]
[TimeControl "90 min for 40 move + 30 min with an increment of 30 sec starting move 1"]
[WhiteTitle "IM"]
[BlackTitle "GM"]
[WhiteFideId "1721003"]
[BlackFideId "1700812"]
[WhiteElo "2450"]
[BlackElo "2445"]

1. d4 {[%clk 01:30:32]} {[%emt 00:00:25]} Nf6 {[%clk 01:29:49]} {[%emt
00:01:13]} 2. Nf3 {[%clk 01:30:51]} {[%emt 00:00:12]} g6 {[%clk 01:30:05]}
{[%emt 00:00:14]} 3. Nbd2 {[%clk 01:31:11]} {[%emt 00:00:09]} Bg7 {[%clk
01:28:31]} {[%emt 00:02:04]} 4. e4 {[%clk 01:31:11]} {[%emt 00:00:30]} O-O
{[%clk 01:28:23]} {[%emt 00:00:38]} 5. Bd3 {[%clk 01:29:21]} {[%emt 00:02:20]}
d6 {[%clk 01:28:40]} {[%emt 00:00:12]} 6. O-O {[%clk 01:28:44]} {[%emt
00:01:08]} Nc6 {[%clk 01:29:03]} {[%emt 00:00:07]} 7. Re1 {[%clk 01:26:59]}
{[%emt 00:02:15]} e5 {[%clk 01:28:37]} {[%emt 00:00:56]} 8. dxe5 {[%clk
01:26:19]} {[%emt 00:01:10]} dxe5 {[%clk 01:28:41]} {[%emt 00:00:26]} 9. Bb5
{[%clk 01:22:18]} {[%emt 00:04:32]} Nd4 {[%clk 01:24:51]} {[%emt 00:04:19]} 10.
Nxd4 {[%clk 01:20:48]} {[%emt 00:02:00]} Qxd4 {[%clk 01:25:12]} {[%emt
00:00:09]} 11. c3 {[%clk 01:17:35]} {[%emt 00:03:43]} Qc5 {[%clk 01:25:22]}
{[%emt 00:00:20]} 12. a4 {[%clk 01:15:05]} {[%emt 00:03:00]} Be6 {[%clk
01:11:03]} {[%emt 00:14:48]} 13. Qc2 {[%clk 01:08:43]} {[%emt 00:06:53]} Rfd8
{[%clk 00:55:34]} {[%emt 00:15:59]} 14. b4 {[%clk 00:55:46]} {[%emt 00:13:28]}
Qe7 {[%clk 00:53:59]} {[%emt 00:02:05]} 15. Bf1 {[%clk 00:52:46]} {[%emt
00:03:30]} Bh6 {[%clk 00:40:11]} {[%emt 00:14:17]} 16. a5 {[%clk 00:50:25]}
{[%emt 00:02:51]} Kg7 {[%clk 00:37:54]} {[%emt 00:02:46]} 17. Nf3 {[%clk
00:37:33]} {[%emt 00:13:22]} Bxc1 {[%clk 00:36:26]} {[%emt 00:01:58]} 18. Qxc1
{[%clk 00:32:37]} {[%emt 00:05:26]} Bg4 {[%clk 00:34:02]} {[%emt 00:02:53]} 19.
Nd2 {[%clk 00:32:28]} {[%emt 00:00:40]} Be6 {[%clk 00:34:26]} {[%emt 00:00:06]}
20. Qc2 {[%clk 00:25:54]} {[%emt 00:07:04]} Ne8 {[%clk 00:29:18]} {[%emt
00:05:38]} 21. Rab1 {[%clk 00:24:49]} {[%emt 00:01:35]} Rac8 {[%clk 00:28:45]}
{[%emt 00:01:02]} 22. c4 {[%clk 00:11:46]} {[%emt 00:13:34]} c5 {[%clk
00:26:34]} {[%emt 00:02:40]} 23. bxc5 {[%clk 00:12:00]} {[%emt 00:00:17]} Rxc5
{[%clk 00:26:50]} {[%emt 00:00:15]} 24. Nb3 {[%clk 00:11:29]} {[%emt 00:01:00]}
Rc7 {[%clk 00:26:53]} {[%emt 00:00:26]} 25. Rec1 {[%clk 00:10:46]} {[%emt
00:01:14]} Nf6 {[%clk 00:18:14]} {[%emt 00:09:08]} 26. Qc3 {[%clk 00:09:18]}
{[%emt 00:02:00]} Nd7 {[%clk 00:17:52]} {[%emt 00:00:51]} 27. Qe3 {[%clk
00:08:22]} {[%emt 00:01:26]} b6 {[%clk 00:17:50]} {[%emt 00:00:33]} 28. axb6
{[%clk 00:07:31]} {[%emt 00:01:21]} axb6 {[%clk 00:18:13]} {[%emt 00:00:06]} 29.
Rb2 {[%clk 00:03:22]} {[%emt 00:04:39]} Ra8 {[%clk 00:17:07]} {[%emt 00:01:36]}
30. Nd2 {[%clk 00:03:11]} {[%emt 00:00:41]} Ra3 {[%clk 00:17:13]} {[%emt
00:00:23]} 31. Rb3 {[%clk 00:02:49]} {[%emt 00:00:53]} Rca7 {[%clk 00:16:49]}
{[%emt 00:00:54]} 32. Nb1 {[%clk 00:02:29]} {[%emt 00:00:50]} Rxb3 {[%clk
00:06:43]} {[%emt 00:10:36]} 33. Qxb3 {[%clk 00:02:57]} {[%emt 00:00:02]} Qg5
{[%clk 00:07:04]} {[%emt 00:00:09]} 34. Rd1 {[%clk 00:02:11]} {[%emt 00:01:16]}
Bg4 {[%clk 00:06:57]} {[%emt 00:00:37]} 35. Re1 {[%clk 00:02:13]} {[%emt
00:00:28]} h5 {[%clk 00:06:02]} {[%emt 00:01:25]} 36. Qb2 {[%clk 00:01:03]}
{[%emt 00:01:41]} Qe7 {[%clk 00:03:58]} {[%emt 00:02:34]} 37. Nc3 {[%clk
00:01:12]} {[%emt 00:00:20]} Qa3 {[%clk 00:04:12]} {[%emt 00:00:16]} 38. Qd2
{[%clk 00:01:02]} {[%emt 00:00:41]} Be6 {[%clk 00:03:43]} {[%emt 00:00:59]} 39.
Nb5 {[%clk 00:01:09]} {[%emt 00:00:22]} Qa5 {[%clk 00:04:07]} {[%emt 00:00:06]}
40. Qe3 {[%clk 00:00:47]} {[%emt 00:00:52]} Rb7 {[%clk 00:04:22]} {[%emt
00:00:15]} 41. Rd1 {[%clk 00:17:11]} {[%emt 00:14:06]} Qb4 {[%clk 00:21:18]}
{[%emt 00:13:34]} 42. Nd6 {[%clk 00:08:57]} {[%emt 00:08:44]} Ra7 {[%clk
00:21:39]} {[%emt 00:00:09]} 43. Nf5+ {[%clk 00:07:41]} {[%emt 00:01:46]} Kg8
{[%clk 00:22:02]} {[%emt 00:00:06]} 44. Qg5 {[%clk 00:07:22]} {[%emt 00:00:50]}
Qf8 {[%clk 00:22:08]} {[%emt 00:00:23]} 45. Ne7+ {[%clk 00:06:09]} {[%emt
00:01:43]} Kh7 {[%clk 00:21:41]} {[%emt 00:00:58]} 46. Nc6 {[%clk 00:05:02]}
{[%emt 00:01:37]} f6 {[%clk 00:17:30]} {[%emt 00:04:41]} 47. Qd2 {[%clk
00:04:29]} {[%emt 00:01:03]} Ra8 {[%clk 00:16:49]} {[%emt 00:01:10]} 48. Nb4
{[%clk 00:02:41]} {[%emt 00:02:19]} Kg7 {[%clk 00:16:48]} {[%emt 00:00:31]} 49.
Nd5 {[%clk 00:02:36]} {[%emt 00:00:35]} Qc5 {[%clk 00:16:50]} {[%emt 00:00:28]}
50. Ne3 {[%clk 00:02:32]} {[%emt 00:00:35]} Ra7 {[%clk 00:14:42]} {[%emt
00:02:37]} 51. h4 {[%clk 00:02:46]} {[%emt 00:00:16]} Nf8 {[%clk 00:12:25]}
{[%emt 00:02:46]} 52. g3 {[%clk 00:02:48]} {[%emt 00:00:28]} Bf7 {[%clk
00:11:40]} {[%emt 00:01:16]} 53. Bh3 {[%clk 00:02:32]} {[%emt 00:00:46]} Bxc4
{[%clk 00:11:50]} {[%emt 00:00:20]} 54. Rc1 {[%clk 00:02:03]} {[%emt 00:01:00]}
b5 {[%clk 00:12:10]} {[%emt 00:00:09]} 55. Bf1 {[%clk 00:02:09]} {[%emt
00:00:24]} Ne6 {[%clk 00:11:07]} {[%emt 00:01:32]} 56. Bxc4 {[%clk 00:02:10]}
{[%emt 00:00:30]} bxc4 {[%clk 00:11:03]} {[%emt 00:00:34]} 57. Rxc4 {[%clk
00:02:30]} {[%emt 00:00:10]} Nd4 {[%clk 00:10:10]} {[%emt 00:01:23]} 58. Kg2
{[%clk 00:02:29]} {[%emt 00:00:31]} Qe7 {[%clk 00:09:23]} {[%emt 00:01:16]} 59.
Qc3 {[%clk 00:01:54]} {[%emt 00:01:05]} Rd7 {[%clk 00:08:43]} {[%emt 00:01:11]}
60. Rc8 {[%clk 00:01:55]} {[%emt 00:00:29]} Qf7 {[%clk 00:08:29]} {[%emt
00:00:44]} 61. Qa5 {[%clk 00:01:09]} {[%emt 00:01:16]} Ra7 {[%clk 00:04:57]}
{[%emt 00:04:03]} 62. Qd8 {[%clk 00:01:24]} {[%emt 00:00:14]} Kh6 {[%clk
00:04:51]} {[%emt 00:00:35]} 63. Qh8+ {[%clk 00:01:40]} {[%emt 00:00:14]} 1-0